[Event "*** Titled Tuesday 3|2 Blitz"]
[Site "Chess.com"]
[Date "2015.11.03"]
[Round "3"]
[White "StoreySniper"]
[Black "bugsbunny444"]
[Result "1-0"]
[WhiteElo "2160"]
[BlackElo "2340"]
[TimeControl "180+2"]
[EndTime "11:39:18 PST"]
[Termination "StoreySniper won by resignation"]

1. e4 {[%clk 0:03:01.9]} 1... e6 {[%clk 0:03:00.9]} 2. d4 {[%clk 0:03:02.2]}
2... d5 {[%clk 0:03:02.6]} 3. Nd2 {[%clk 0:03:03.2]} 3... Nf6 {[%clk 0:03:03.9]}
4. e5 {[%clk 0:03:03.5]} 4... Nfd7 {[%clk 0:03:05.6]} 5. f4 {[%clk 0:03:05.2]}
5... c5 {[%clk 0:03:07.3]} 6. c3 {[%clk 0:03:06.8]} 6... Nc6 {[%clk 0:03:08.9]}
7. Ndf3 {[%clk 0:03:08]} 7... cxd4 {[%clk 0:03:09.5]} 8. cxd4 {[%clk 0:03:08.8]}
8... a5 {[%clk 0:03:11.2]} 9. Bd3 {[%clk 0:03:04.9]} 9... a4 {[%clk 0:03:12.7]}
10. Ne2 {[%clk 0:03:03.1]} 10... Nb6 {[%clk 0:03:13.5]} 11. O-O {[%clk
0:03:02.8]} 11... Be7 {[%clk 0:03:15.2]} 12. Kh1 {[%clk 0:02:56.6]} 12... Bd7
{[%clk 0:03:07.3]} 13. Ng3 {[%clk 0:02:51.5]} 13... g6 {[%clk 0:03:07.7]} 14. f5
{[%clk 0:02:38.6]} 14... exf5 {[%clk 0:03:03.7]} 15. Bh6 {[%clk 0:02:37.6]}
15... Be6 {[%clk 0:02:58.2]} 16. Ne2 {[%clk 0:02:37.2]} 16... Nc4 {[%clk
0:02:53]} 17. Nf4 {[%clk 0:02:31]} 17... Nxb2 {[%clk 0:02:49]} 18. Qe2 {[%clk
0:02:24.3]} 18... Nxd3 {[%clk 0:02:45.5]} 19. Qxd3 {[%clk 0:02:21.7]} 19... Nb4
{[%clk 0:02:33.7]} 20. Qd2 {[%clk 0:02:07.2]} 20... a3 {[%clk 0:02:17.2]} 21.
Rab1 {[%clk 0:02:04.9]} 21... Qa5 {[%clk 0:02:07.3]} 22. Bg7 {[%clk 0:01:54.6]}
22... Rg8 {[%clk 0:01:55.5]} 23. Bf6 {[%clk 0:01:55.6]} 23... Nc6 {[%clk
0:01:47.1]} 24. Qe3 {[%clk 0:01:44.1]} 24... Qa6 {[%clk 0:01:22.7]} 25. Ng5
{[%clk 0:01:38.2]} 25... Kd7 {[%clk 0:01:15.9]} 26. Nxf7 {[%clk 0:01:32.9]}
26... Bxf6 {[%clk 0:01:04]} 27. exf6 {[%clk 0:01:33.3]} 27... Bxf7 {[%clk
0:01:04.3]} 28. Nd3 {[%clk 0:01:20.4]} 28... b6 {[%clk 0:00:53.4]} 29. Rfc1
{[%clk 0:01:15]} 29... Rge8 {[%clk 0:00:49.1]} 30. Qh3 {[%clk 0:01:15]} 30... h5
{[%clk 0:00:36.1]} 31. Qg3 {[%clk 0:01:15.4]} 31... Rac8 {[%clk 0:00:24.6]} 32.
Rxb6 {[%clk 0:01:12.3]} 32... Qxb6 {[%clk 0:00:21.1]} 33. Nc5+ {[%clk
0:01:13.5]} 33... Qxc5 {[%clk 0:00:14.1]} 34. dxc5 {[%clk 0:01:14.7]} 34... Re6
{[%clk 0:00:14.6]} 35. Qxa3 {[%clk 0:01:15.6]} 35... Rxf6 {[%clk 0:00:11.3]} 36.
Rb1 {[%clk 0:01:16.1]} 36... Rc7 {[%clk 0:00:12.1]} 37. Qc3 {[%clk 0:01:15.5]}
37... Re6 {[%clk 0:00:13.1]} 38. Qg7 {[%clk 0:01:16.1]} 38... Re7 {[%clk
0:00:11.7]} 39. Qf8 {[%clk 0:01:16.6]} 39... d4 {[%clk 0:00:09.6]} 40. Qh6
{[%clk 0:01:16.5]} 40... Bxa2 {[%clk 0:00:09.3]} 41. Rd1 {[%clk 0:01:15.5]}
41... Bf7 {[%clk 0:00:09.9]} 42. Qf4 {[%clk 0:01:16.8]} 42... Re6 {[%clk
0:00:09.9]} 43. h4 {[%clk 0:01:14.8]} 43... Rb7 {[%clk 0:00:06.9]} 44. Ra1
{[%clk 0:01:14.9]} 44... Ke7 {[%clk 0:00:06.4]} 45. Kh2 {[%clk 0:01:13.3]} 45...
Kd7 {[%clk 0:00:06.5]} 46. Qh6 {[%clk 0:01:11.6]} 46... Rc7 {[%clk 0:00:05.9]}
47. Qg7 {[%clk 0:01:12.8]} 47... Ke7 {[%clk 0:00:06.9]} 48. Qh6 {[%clk
0:01:09.9]} 48... Ne5 {[%clk 0:00:08.1]} 49. Qg5+ {[%clk 0:01:10.8]} 49... Kd7
{[%clk 0:00:09.4]} 50. Qd2 {[%clk 0:00:47.3]} 50... d3 {[%clk 0:00:03.9]} 51.
Qc3 {[%clk 0:00:40.2]} 51... Rcc6 {[%clk 0:00:03.4]} 52. Ra7+ {[%clk 0:00:39.7]}
52... Rc7 {[%clk 0:00:04.9]} 53. Qd4+ {[%clk 0:00:40.3]} 53... Kc6 {[%clk
0:00:04.6]} 54. Qa4+ {[%clk 0:00:35.6]} 54... Kxc5 {[%clk 0:00:03.2]} 55. Rxc7+
{[%clk 0:00:36.6]} 55... Kd6 {[%clk 0:00:04.5]} 56. Rc4 {[%clk 0:00:18.1]} 56...
Ng4+ {[%clk 0:00:05.6]} 57. Rxg4 {[%clk 0:00:19.1]} 57... hxg4 {[%clk
0:00:07.5]} 58. Qd4+ {[%clk 0:00:20.6]} 58... Ke7 {[%clk 0:00:08.4]} 59. Qxd3
{[%clk 0:00:22.5]} 59... Re4 {[%clk 0:00:08]} 60. Qa3+ {[%clk 0:00:23.8]} 60...
Kf6 {[%clk 0:00:09.1]} 61. Qf8 {[%clk 0:00:21.8]} 61... Re8 {[%clk 0:00:08.2]}
62. Qh6 {[%clk 0:00:21.4]} 62... Ke6 {[%clk 0:00:08.7]} 63. Kg3 {[%clk
0:00:19.7]} 63... Rc8 {[%clk 0:00:08.8]} 64. Kf4 {[%clk 0:00:20.6]} 64... Rc2
{[%clk 0:00:08.5]} 65. g3 {[%clk 0:00:18.5]} 65... Rc3 {[%clk 0:00:08.2]} 66.
Qg7 {[%clk 0:00:18.2]} 66... Rf3+ {[%clk 0:00:08.7]} 67. Kg5 {[%clk 0:00:19.6]}
67... Ke7 {[%clk 0:00:05.3]} 68. Qf6+ {[%clk 0:00:17]} 68... Ke8 {[%clk
0:00:06.6]} 69. Qc6+ {[%clk 0:00:17.3]} 69... Ke7 {[%clk 0:00:06.8]} 70. Qc7+
{[%clk 0:00:17]} 70... Ke6 {[%clk 0:00:05.9]} 71. Qb6+ {[%clk 0:00:17.1]} 71...
Ke7 {[%clk 0:00:07]} 72. Qb7+ {[%clk 0:00:16.2]} 72... Ke6 {[%clk 0:00:08.3]}
73. Qa6+ {[%clk 0:00:16.9]} 73... Ke7 {[%clk 0:00:09.5]} 74. Qa7+ {[%clk
0:00:18.2]} 74... Ke6 {[%clk 0:00:10.9]} 75. h5 {[%clk 0:00:19.6]} 75... gxh5
{[%clk 0:00:11.3]} 76. Qb6+ {[%clk 0:00:21.1]} 76... Ke7 {[%clk 0:00:12.2]} 77.
Qc7+ {[%clk 0:00:20.5]} 77... Ke6 {[%clk 0:00:13.3]} 78. Qc4+ {[%clk 0:00:21.3]}
78... Ke7 {[%clk 0:00:14.3]} 79. Qc5+ {[%clk 0:00:22.3]} 79... Ke6 {[%clk
0:00:15.6]} 80. Qc8+ {[%clk 0:00:22.4]} 80... Ke7 {[%clk 0:00:16.9]} 81. Qc7+
{[%clk 0:00:23.3]} 81... Ke6 {[%clk 0:00:18.5]} 82. Qb6+ {[%clk 0:00:24.4]}
82... Ke7 {[%clk 0:00:19.8]} 83. Qc5+ {[%clk 0:00:25.2]} 83... Ke6 {[%clk
0:00:21]} 84. Qc6+ {[%clk 0:00:26.1]} 84... Ke7 {[%clk 0:00:20.5]} 85. Qf6+
{[%clk 0:00:27.8]} 85... Ke8 {[%clk 0:00:21.2]} 86. Qd6 {[%clk 0:00:24.7]} 86...
f4 {[%clk 0:00:09.9]} 87. gxf4 {[%clk 0:00:21.8]} 87... Rb3 {[%clk 0:00:10.7]}
88. Qe5+ {[%clk 0:00:20.5]} 88... Kf8 {[%clk 0:00:11]} 89. f5 {[%clk 0:00:20]}
89... g3 {[%clk 0:00:08]} 90. Qd6+ {[%clk 0:00:17.4]} 90... Ke8 {[%clk
0:00:08.1]} 91. Kf6 {[%clk 0:00:15.2]} 91... Re3 {[%clk 0:00:04.3]} 92. Qb8+
{[%clk 0:00:14.3]} 92... Kd7 {[%clk 0:00:05]} 93. Qa7+ {[%clk 0:00:15.7]} 1-0

[Event "*** Titled Tuesday 3|2 Blitz"]
[Site "Chess.com"]
[Date "2015.11.03"]
[Round "4"]
[White "ilmago"]
[Black "LADIESGET2KNOWME"]
[Result "0-1"]
[WhiteElo "1905"]
[BlackElo "2240"]
[TimeControl "180+2"]
[EndTime "11:42:22 PST"]
[Termination "LADIESGET2KNOWME won by resignation"]

1. e4 {[%clk 0:03:01.9]} 1... e6 {[%clk 0:03:01.2]} 2. d4 {[%clk 0:03:01.6]}
2... d5 {[%clk 0:03:03.1]} 3. Nc3 {[%clk 0:03:00.2]} 3... Nf6 {[%clk 0:03:04.4]}
4. e5 {[%clk 0:02:59.6]} 4... Nfd7 {[%clk 0:03:05.4]} 5. f4 {[%clk 0:03:00.5]}
5... c5 {[%clk 0:03:06.9]} 6. Nce2 {[%clk 0:03:00.8]} 6... Nc6 {[%clk
0:03:08.8]} 7. c3 {[%clk 0:03:01]} 7... Qb6 {[%clk 0:03:10.3]} 8. Nf3 {[%clk
0:03:00.1]} 8... Be7 {[%clk 0:03:11.5]} 9. a3 {[%clk 0:02:59.4]} 9... a5 {[%clk
0:03:11]} 10. Qc2 {[%clk 0:02:54.4]} 10... f6 {[%clk 0:03:08.5]} 11. dxc5 {[%clk
0:02:51.9]} 11... Bxc5 {[%clk 0:03:03.4]} 12. exf6 {[%clk 0:02:52.4]} 12... Bf2+
{[%clk 0:03:02.1]} 13. Kd1 {[%clk 0:02:52.6]} 13... Nxf6 {[%clk 0:03:04]} 14. g3
{[%clk 0:02:36.3]} 14... O-O {[%clk 0:03:01.9]} 15. Bh3 {[%clk 0:02:35.1]} 15...
Ne4 {[%clk 0:03:01.9]} 16. Qd3 {[%clk 0:02:15]} 16... Bc5 {[%clk 0:02:58.9]} 17.
Ned4 {[%clk 0:02:09.6]} 17... Nf2+ {[%clk 0:02:58.7]} 0-1

[Event "*** Titled Tuesday 3|2 Blitz"]
[Site "Chess.com"]
[Date "2015.11.03"]
[Round "4"]
[White "jcgs1030"]
[Black "Entilza"]
[Result "1-0"]
[WhiteElo "2164"]
[BlackElo "2032"]
[TimeControl "180+2"]
[EndTime "11:44:18 PST"]
[Termination "jcgs1030 won by resignation"]

1. e4 {[%clk 0:03:01.9]} 1... d6 {[%clk 0:02:58.1]} 2. d4 {[%clk 0:03:02.1]}
2... Nf6 {[%clk 0:02:58.2]} 3. Nc3 {[%clk 0:03:02.7]} 3... e5 {[%clk 0:02:58.6]}
4. Nge2 {[%clk 0:02:55.7]} 4... Be7 {[%clk 0:02:54.7]} 5. f3 {[%clk 0:02:56.9]}
5... b6 {[%clk 0:02:35.5]} 6. Be3 {[%clk 0:02:57.4]} 6... c5 {[%clk 0:02:32.3]}
7. dxc5 {[%clk 0:02:39.4]} 7... dxc5 {[%clk 0:02:31.7]} 8. Nd5 {[%clk
0:02:40.4]} 8... Nxd5 {[%clk 0:02:26.7]} 9. exd5 {[%clk 0:02:41.5]} 9... f5
{[%clk 0:02:23.8]} 10. c4 {[%clk 0:02:42.3]} 10... f4 {[%clk 0:02:21.4]} 11. Bf2
{[%clk 0:02:43.5]} 11... Bh4 {[%clk 0:02:17]} 12. g3 {[%clk 0:02:40.3]} 12...
Bg5 {[%clk 0:02:11.9]} 13. Nc3 {[%clk 0:02:37]} 13... fxg3 {[%clk 0:02:09.5]}
14. hxg3 {[%clk 0:02:33.7]} 14... Bf5 {[%clk 0:02:08.8]} 15. Bd3 {[%clk
0:02:25.9]} 15... g6 {[%clk 0:02:05]} 16. Bxf5 {[%clk 0:02:26.3]} 16... gxf5
{[%clk 0:02:03.2]} 17. f4 {[%clk 0:02:27.8]} 17... exf4 {[%clk 0:01:57]} 18.
gxf4 {[%clk 0:02:28.7]} 18... Bf6 {[%clk 0:01:56.7]} 19. Qh5+ {[%clk 0:02:27.4]}
19... Kf8 {[%clk 0:01:56.9]} 20. Qxf5 {[%clk 0:02:28.4]} 20... Nd7 {[%clk
0:01:52.4]} 21. Bh4 {[%clk 0:02:28]} 21... Qe7+ {[%clk 0:01:51.4]} 22. Kd2
{[%clk 0:02:29.3]} 22... Re8 {[%clk 0:01:44.3]} 23. Rae1 {[%clk 0:02:30.1]}
23... Qd6 {[%clk 0:01:39.3]} 24. Rxe8+ {[%clk 0:02:24.9]} 24... Kxe8 {[%clk
0:01:39.2]} 25. Re1+ {[%clk 0:02:26.5]} 25... Kd8 {[%clk 0:01:36.7]} 26. Re6
{[%clk 0:02:27.9]} 1-0

[Event "*** Titled Tuesday 3|2 Blitz"]
[Site "Chess.com"]
[Date "2015.11.03"]
[Round "4"]
[White "StoreySniper"]
[Black "NMJeevanK"]
[Result "1-0"]
[WhiteElo "2170"]
[BlackElo "2210"]
[TimeControl "180+2"]
[EndTime "11:45:32 PST"]
[Termination "StoreySniper won by resignation"]

1. e4 {[%clk 0:03:01.9]} 1... c5 {[%clk 0:03:00.6]} 2. Nf3 {[%clk 0:03:00.3]}
2... Nc6 {[%clk 0:03:02.1]} 3. Bb5 {[%clk 0:03:00.4]} 3... d6 {[%clk 0:03:02.4]}
4. O-O {[%clk 0:03:01.5]} 4... Bd7 {[%clk 0:03:03.3]} 5. c3 {[%clk 0:03:02.2]}
5... Nf6 {[%clk 0:03:04.3]} 6. Re1 {[%clk 0:03:02.7]} 6... e5 {[%clk 0:03:04.8]}
7. d4 {[%clk 0:03:02.4]} 7... cxd4 {[%clk 0:03:05.5]} 8. cxd4 {[%clk 0:03:03.5]}
8... exd4 {[%clk 0:03:05.6]} 9. Nxd4 {[%clk 0:03:03.1]} 9... Nxd4 {[%clk
0:03:05.6]} 10. Bxd7+ {[%clk 0:03:03.9]} 10... Qxd7 {[%clk 0:03:06]} 11. Qxd4
{[%clk 0:03:05.8]} 11... Be7 {[%clk 0:03:07.4]} 12. Nc3 {[%clk 0:03:06.9]} 12...
O-O {[%clk 0:03:08]} 13. Bf4 {[%clk 0:03:07.8]} 13... a6 {[%clk 0:03:06]} 14.
Rad1 {[%clk 0:03:08.2]} 14... Rad8 {[%clk 0:03:06.6]} 15. h3 {[%clk 0:03:04.3]}
15... b5 {[%clk 0:03:01.5]} 16. e5 {[%clk 0:02:57]} 16... dxe5 {[%clk
0:02:59.5]} 17. Qxe5 {[%clk 0:02:58]} 17... Qc8 {[%clk 0:01:44.7]} 18. Qxe7
{[%clk 0:02:54.7]} 18... b4 {[%clk 0:01:37.8]} 19. Ne4 {[%clk 0:02:34.2]} 19...
Nd5 {[%clk 0:01:05.1]} 20. Qg5 {[%clk 0:02:27.4]} 20... Nxf4 {[%clk 0:01:05.3]}
21. Qxf4 {[%clk 0:02:24]} 21... Qc2 {[%clk 0:01:05.2]} 22. Rxd8 {[%clk 0:02:18]}
22... Rxd8 {[%clk 0:01:07.1]} 23. Qg5 {[%clk 0:02:13.6]} 23... Rf8 {[%clk
0:01:04.2]} 24. Nf6+ {[%clk 0:02:08.7]} 24... Kh8 {[%clk 0:01:05.2]} 25. Nd7
{[%clk 0:02:07.8]} 25... Rg8 {[%clk 0:00:58.1]} 26. Ne5 {[%clk 0:02:03.4]} 26...
Qc7 {[%clk 0:00:53.2]} 27. Qf4 {[%clk 0:01:59.8]} 27... g5 {[%clk 0:00:38.2]}
1-0

[Event "*** Titled Tuesday 3|2 Blitz"]
[Site "Chess.com"]
[Date "2015.11.03"]
[Round "4"]
[White "jup1978"]
[Black "vovkcoach"]
[Result "1-0"]
[WhiteElo "2219"]
[BlackElo "2465"]
[TimeControl "180+2"]
[EndTime "11:46:03 PST"]
[Termination "jup1978 won by resignation"]

1. e4 {[%clk 0:03:00.5]} 1... c6 {[%clk 0:02:54.7]} 2. d4 {[%clk 0:03:00.6]}
2... d5 {[%clk 0:02:56.6]} 3. Nd2 {[%clk 0:03:02]} 3... dxe4 {[%clk 0:02:57.1]}
4. Nxe4 {[%clk 0:03:03.9]} 4... Nd7 {[%clk 0:02:58.6]} 5. Bc4 {[%clk 0:03:02.6]}
5... Ngf6 {[%clk 0:02:57]} 6. Ng5 {[%clk 0:03:03.3]} 6... e6 {[%clk 0:02:58]} 7.
Qe2 {[%clk 0:03:04.5]} 7... Nb6 {[%clk 0:02:57.4]} 8. Bb3 {[%clk 0:03:05.5]}
8... h6 {[%clk 0:02:57.8]} 9. N5f3 {[%clk 0:03:05.9]} 9... c5 {[%clk 0:02:57.7]}
10. Ne5 {[%clk 0:03:05.6]} 10... cxd4 {[%clk 0:02:53.1]} 11. Ngf3 {[%clk
0:03:05.6]} 11... Bb4+ {[%clk 0:02:52]} 12. Bd2 {[%clk 0:03:05.6]} 12... Bxd2+
{[%clk 0:02:52]} 13. Qxd2 {[%clk 0:03:07.1]} 13... O-O {[%clk 0:02:52.4]} 14.
O-O-O {[%clk 0:03:08.5]} 14... a5 {[%clk 0:02:51.9]} 15. a4 {[%clk 0:03:06.8]}
15... Qc7 {[%clk 0:02:49.1]} 16. Qxd4 {[%clk 0:03:06.8]} 16... Bd7 {[%clk
0:02:48.1]} 17. Nxd7 {[%clk 0:03:06.1]} 17... Nfxd7 {[%clk 0:02:48.1]} 18. Qd6
{[%clk 0:03:04.9]} 18... Rfc8 {[%clk 0:02:41.9]} 19. Qxc7 {[%clk 0:03:04.9]}
19... Rxc7 {[%clk 0:02:43.8]} 20. Rd6 {[%clk 0:02:56.5]} 20... Nc8 {[%clk
0:02:43]} 21. Rd2 {[%clk 0:02:43.6]} 21... Ne7 {[%clk 0:02:42.3]} 22. Rhd1
{[%clk 0:02:40.1]} 22... Nc5 {[%clk 0:02:42.5]} 23. Rd8+ {[%clk 0:02:40.8]}
23... Rxd8 {[%clk 0:02:43]} 24. Rxd8+ {[%clk 0:02:42.7]} 24... Kh7 {[%clk
0:02:44.7]} 25. Kb1 {[%clk 0:02:39.3]} 25... Nc6 {[%clk 0:02:43]} 26. Rd1 {[%clk
0:02:27.6]} 26... Nxb3 {[%clk 0:02:43.5]} 27. cxb3 {[%clk 0:02:28.2]} 27... e5
{[%clk 0:02:40.6]} 28. Nd2 {[%clk 0:02:27.7]} 28... Rd7 {[%clk 0:02:40.9]} 29.
Kc1 {[%clk 0:02:28.1]} 29... Nd4 {[%clk 0:02:41.2]} 30. Nc4 {[%clk 0:02:20.3]}
30... Nxb3+ {[%clk 0:02:41.3]} 31. Kc2 {[%clk 0:02:21.7]} 31... Rxd1 {[%clk
0:02:38.4]} 32. Kxd1 {[%clk 0:02:23.6]} 32... f6 {[%clk 0:02:36.5]} 33. Kc2
{[%clk 0:02:24.8]} 33... Nd4+ {[%clk 0:02:37.2]} 34. Kc3 {[%clk 0:02:25.5]}
34... Nc6 {[%clk 0:02:38.3]} 35. Nd6 {[%clk 0:02:25.6]} 35... Kg6 {[%clk
0:02:20.2]} 36. Nxb7 {[%clk 0:02:25.8]} 36... e4 {[%clk 0:02:18.6]} 37. Kc4
{[%clk 0:02:25.9]} 37... f5 {[%clk 0:02:17.5]} 38. Kc5 {[%clk 0:02:21.4]} 38...
Nb4 {[%clk 0:02:18.1]} 39. Nxa5 {[%clk 0:02:13.3]} 39... Nd3+ {[%clk 0:02:18.8]}
40. Kb5 {[%clk 0:02:14.8]} 40... Nxf2 {[%clk 0:01:54.1]} 41. Nb3 {[%clk
0:02:08.5]} 41... f4 {[%clk 0:01:54.5]} 42. a5 {[%clk 0:02:07.6]} 1-0

[Event "*** Titled Tuesday 3|2 Blitz"]
[Site "Chess.com"]
[Date "2015.11.03"]
[Round "4"]
[White "WanderingPuppet"]
[Black "ChadaevNikolay"]
[Result "0-1"]
[WhiteElo "2215"]
[BlackElo "2569"]
[TimeControl "180+2"]
[EndTime "11:46:17 PST"]
[Termination "ChadaevNikolay won by resignation"]

1. e4 {[%clk 0:03:01.9]} 1... d6 {[%clk 0:02:58.3]} 2. d4 {[%clk 0:03:02.4]}
2... Nf6 {[%clk 0:02:58]} 3. Nc3 {[%clk 0:03:03.5]} 3... g6 {[%clk 0:02:59.1]}
4. Bf4 {[%clk 0:03:04.5]} 4... Bg7 {[%clk 0:02:58.8]} 5. Qd2 {[%clk 0:03:05.2]}
5... O-O {[%clk 0:02:55.3]} 6. O-O-O {[%clk 0:03:05.5]} 6... c6 {[%clk
0:02:53.3]} 7. h4 {[%clk 0:03:02.2]} 7... h5 {[%clk 0:02:52.7]} 8. f3 {[%clk
0:03:03]} 8... b5 {[%clk 0:02:53.6]} 9. Bh6 {[%clk 0:03:01.3]} 9... b4 {[%clk
0:02:53.5]} 10. Nce2 {[%clk 0:03:01.8]} 10... a5 {[%clk 0:02:52.9]} 11. Bxg7
{[%clk 0:03:02.4]} 11... Kxg7 {[%clk 0:02:53.8]} 12. Nh3 {[%clk 0:03:02.9]}
12... Bxh3 {[%clk 0:02:52.9]} 13. Rxh3 {[%clk 0:03:02.4]} 13... Nbd7 {[%clk
0:02:54.5]} 14. Qe3 {[%clk 0:02:52.7]} 14... Qb6 {[%clk 0:02:53.4]} 15. Ng3
{[%clk 0:02:49.4]} 15... e6 {[%clk 0:02:51.4]} 16. Qg5 {[%clk 0:02:45.1]} 16...
Rh8 {[%clk 0:02:41.9]} 17. e5 {[%clk 0:02:42.7]} 17... dxe5 {[%clk 0:02:42.6]}
18. dxe5 {[%clk 0:02:42.6]} 18... Nd5 {[%clk 0:02:44.2]} 19. Ne4 {[%clk
0:02:32.3]} 19... a4 {[%clk 0:02:33.5]} 20. Bc4 {[%clk 0:01:59.2]} 20... Rad8
{[%clk 0:02:31.9]} 21. Bxd5 {[%clk 0:01:34.9]} 21... cxd5 {[%clk 0:02:31.9]} 22.
Nd6 {[%clk 0:01:28.3]} 22... b3 {[%clk 0:02:27.2]} 23. cxb3 {[%clk 0:00:59.8]}
23... axb3 {[%clk 0:02:27.4]} 24. axb3 {[%clk 0:01:00.1]} 24... Ra8 {[%clk
0:02:08.1]} 25. f4 {[%clk 0:00:46.1]} 25... Ra1+ {[%clk 0:01:59.9]} 26. Kc2
{[%clk 0:00:47]} 26... Qf2+ {[%clk 0:02:01.3]} 27. Rd2 {[%clk 0:00:46.2]} 27...
Qf1 {[%clk 0:01:54.8]} 28. b4 {[%clk 0:00:25.8]} 28... Rc1+ {[%clk 0:01:45.7]}
29. Kb3 {[%clk 0:00:25.8]} 29... Nc5+ {[%clk 0:01:47.2]} 30. bxc5 {[%clk
0:00:24.2]} 30... Rb8+ {[%clk 0:01:48.6]} 0-1

[Event "*** Titled Tuesday 3|2 Blitz"]
[Site "Chess.com"]
[Date "2015.11.03"]
[Round "4"]
[White "BjarkeSahl"]
[Black "HansCoolNiemann"]
[Result "0-1"]
[WhiteElo "2158"]
[BlackElo "2150"]
[TimeControl "180+2"]
[EndTime "11:46:56 PST"]
[Termination "HansCoolNiemann won on time"]

1. e4 {[%clk 0:03:01.9]} 1... e6 {[%clk 0:02:58.6]} 2. d4 {[%clk 0:03:01.8]}
2... d5 {[%clk 0:02:58.8]} 3. Nc3 {[%clk 0:03:02.4]} 3... Nf6 {[%clk 0:02:58.1]}
4. Bg5 {[%clk 0:03:02.4]} 4... dxe4 {[%clk 0:02:56.7]} 5. Nxe4 {[%clk
0:03:01.2]} 5... Be7 {[%clk 0:02:56.7]} 6. Bxf6 {[%clk 0:02:58.8]} 6... gxf6
{[%clk 0:02:57.3]} 7. Nf3 {[%clk 0:02:56.3]} 7... f5 {[%clk 0:02:55.8]} 8. Ng3
{[%clk 0:02:56.6]} 8... c5 {[%clk 0:02:53]} 9. c3 {[%clk 0:02:49.2]} 9... Nc6
{[%clk 0:02:49.7]} 10. dxc5 {[%clk 0:02:40.1]} 10... Qxd1+ {[%clk 0:02:49.1]}
11. Rxd1 {[%clk 0:02:39.9]} 11... Bxc5 {[%clk 0:02:51]} 12. Bb5 {[%clk 0:02:39]}
12... Bd7 {[%clk 0:02:51.2]} 13. Ke2 {[%clk 0:02:27.7]} 13... a6 {[%clk
0:02:47.3]} 14. Ba4 {[%clk 0:02:25.6]} 14... Ba7 {[%clk 0:02:47]} 15. Rd2 {[%clk
0:02:11.8]} 15... b5 {[%clk 0:02:45.6]} 16. Bb3 {[%clk 0:02:10.6]} 16... Na5
{[%clk 0:02:45.4]} 17. Rhd1 {[%clk 0:02:09.6]} 17... Bc6 {[%clk 0:02:44.5]} 18.
Nh5 {[%clk 0:02:00.6]} 18... Nxb3 {[%clk 0:02:40.1]} 19. axb3 {[%clk 0:02:00.8]}
19... Ke7 {[%clk 0:02:40.5]} 20. Nf4 {[%clk 0:01:55.7]} 20... Rhd8 {[%clk
0:02:35]} 21. Ne5 {[%clk 0:01:30.6]} 21... Be8 {[%clk 0:02:32.5]} 22. b4 {[%clk
0:01:11.1]} 22... f6 {[%clk 0:02:26.5]} 23. Rxd8 {[%clk 0:00:53.7]} 23... Rxd8
{[%clk 0:02:24.9]} 24. Rxd8 {[%clk 0:00:55.3]} 24... Kxd8 {[%clk 0:02:23.9]} 25.
Ned3 {[%clk 0:00:55.7]} 25... Ke7 {[%clk 0:02:23.8]} 26. Nc5 {[%clk 0:00:53.3]}
26... Bxc5 {[%clk 0:02:23.7]} 27. bxc5 {[%clk 0:00:53.5]} 27... Bc6 {[%clk
0:02:25.2]} 28. f3 {[%clk 0:00:51.8]} 28... a5 {[%clk 0:02:25.2]} 29. Kd2 {[%clk
0:00:41.7]} 29... e5 {[%clk 0:02:24.5]} 30. Ne2 {[%clk 0:00:40.4]} 30... Ke6
{[%clk 0:02:25.3]} 31. Nc1 {[%clk 0:00:35.7]} 31... Kd5 {[%clk 0:02:25.8]} 32.
b4 {[%clk 0:00:11.2]} 32... a4 {[%clk 0:02:22.5]} 33. Kc2 {[%clk 0:00:08.5]}
33... Kc4 {[%clk 0:02:21.8]} 34. Nd3 {[%clk 0:00:06]} 34... e4 {[%clk 0:02:21]}
35. Nb2+ {[%clk 0:00:06.5]} 35... Kd5 {[%clk 0:02:20.5]} 36. f4 {[%clk 0:00:05]}
36... e3 {[%clk 0:02:17]} 0-1

[Event "*** Titled Tuesday 3|2 Blitz"]
[Site "Chess.com"]
[Date "2015.11.03"]
[Round "4"]
[White "Moltini"]
[Black "Er_is_geen_hoop_meer"]
[Result "0-1"]
[WhiteElo "2198"]
[BlackElo "2409"]
[TimeControl "180+2"]
[EndTime "11:47:28 PST"]
[Termination "Er_is_geen_hoop_meer won by checkmate"]

1. d4 {[%clk 0:03:01]} 1... Nf6 {[%clk 0:02:58.6]} 2. c4 {[%clk 0:03:02.1]} 2...
g6 {[%clk 0:02:59]} 3. Nc3 {[%clk 0:03:03]} 3... Bg7 {[%clk 0:03:00.4]} 4. e4
{[%clk 0:03:04.1]} 4... d6 {[%clk 0:03:01.6]} 5. Be2 {[%clk 0:03:05.4]} 5... O-O
{[%clk 0:03:02.4]} 6. Nf3 {[%clk 0:03:06.8]} 6... e5 {[%clk 0:03:03.6]} 7. O-O
{[%clk 0:03:08.1]} 7... Nc6 {[%clk 0:03:04.1]} 8. d5 {[%clk 0:03:09.4]} 8... Ne7
{[%clk 0:03:05.5]} 9. b4 {[%clk 0:03:10.8]} 9... a5 {[%clk 0:03:04.9]} 10. Ba3
{[%clk 0:03:11.6]} 10... axb4 {[%clk 0:03:05.8]} 11. Bxb4 {[%clk 0:03:12.3]}
11... Re8 {[%clk 0:03:06.4]} 12. c5 {[%clk 0:03:11.5]} 12... Nh5 {[%clk
0:03:01.3]} 13. cxd6 {[%clk 0:03:10.3]} 13... cxd6 {[%clk 0:03:03.2]} 14. Re1
{[%clk 0:03:07.5]} 14... f5 {[%clk 0:03:03.8]} 15. Bf1 {[%clk 0:03:06.6]} 15...
Nf4 {[%clk 0:03:04.9]} 16. Qb3 {[%clk 0:03:00.2]} 16... fxe4 {[%clk 0:03:05.8]}
17. Nxe4 {[%clk 0:03:00.3]} 17... Nf5 {[%clk 0:03:07]} 18. Rac1 {[%clk 0:02:44]}
18... Bh6 {[%clk 0:03:00.8]} 19. Bb5 {[%clk 0:02:28.3]} 19... Rf8 {[%clk
0:02:57.6]} 20. a4 {[%clk 0:01:55.6]} 20... g5 {[%clk 0:02:51.7]} 21. h3 {[%clk
0:01:14.3]} 21... g4 {[%clk 0:02:41]} 22. hxg4 {[%clk 0:01:14.8]} 22... Nd4
{[%clk 0:02:41.2]} 23. Nxd4 {[%clk 0:01:14.2]} 23... exd4 {[%clk 0:02:43.1]} 24.
Bxd6 {[%clk 0:01:11.4]} 24... Bxg4 {[%clk 0:02:35.9]} 25. Qg3 {[%clk 0:01:05.1]}
25... Rf7 {[%clk 0:02:23.9]} 26. Bxf4 {[%clk 0:00:57.8]} 26... Rxf4 {[%clk
0:02:25.8]} 27. f3 {[%clk 0:00:53]} 27... Qb6 {[%clk 0:02:17.4]} 28. fxg4 {[%clk
0:00:49.3]} 28... d3+ {[%clk 0:02:18.5]} 29. Kh1 {[%clk 0:00:47.9]} 29... Rxe4
{[%clk 0:02:19.3]} 30. Rxe4 {[%clk 0:00:43.7]} 30... Bxc1 {[%clk 0:02:20]} 31.
Bxd3 {[%clk 0:00:42.3]} 31... Rf8 {[%clk 0:02:19]} 32. Re7 {[%clk 0:00:31]}
32... Qf6 {[%clk 0:01:56]} 33. Rxh7 {[%clk 0:00:13.8]} 33... Bf4 {[%clk
0:01:48.4]} 34. Qe1 {[%clk 0:00:14.1]} 34... Rc8 {[%clk 0:01:43.3]} 35. g3
{[%clk 0:00:14]} 35... Rc1 {[%clk 0:01:43.3]} 36. Qxc1 {[%clk 0:00:10.3]} 36...
Bxc1 {[%clk 0:01:45.2]} 37. Bf5 {[%clk 0:00:11.2]} 37... Qe5 {[%clk 0:01:45.2]}
38. Rd7 {[%clk 0:00:10.8]} 38... Qe1+ {[%clk 0:01:46.1]} 39. Kg2 {[%clk
0:00:11.7]} 39... Qe2+ {[%clk 0:01:47.3]} 40. Kh3 {[%clk 0:00:12.4]} 40... Qf1+
{[%clk 0:01:48.5]} 41. Kh2 {[%clk 0:00:13.7]} 41... Be3 {[%clk 0:01:47.8]} 42.
Rd8+ {[%clk 0:00:13.4]} 42... Kg7 {[%clk 0:01:49.3]} 43. Rd6 {[%clk 0:00:12.9]}
43... Bg1+ {[%clk 0:01:49.2]} 44. Kh1 {[%clk 0:00:13.8]} 44... Bf2+ {[%clk
0:01:50.4]} 45. Kh2 {[%clk 0:00:14.9]} 45... Qg1+ {[%clk 0:01:51.3]} 46. Kh3
{[%clk 0:00:16.4]} 46... Qh1# {[%clk 0:01:52.7]} 0-1